[Event "Early-Titled-Tuesday-Blitz-October-10-2023"]
[Site "Chess.com"]
[Date "2023.10.10"]
[Round "7"]
[White "McCarthyStone"]
[Black "AlexPapasimakopoulos"]
[Result "0-1"]
[WhiteElo "2423"]
[BlackElo "2710"]
[TimeControl "180+1"]
[EndTime "9:15:31 PDT"]
[Termination "AlexPapasimakopoulos won on time"]

1. b3 {[%clk 0:03:00.9]} 1... d5 {[%clk 0:02:56.3]} 2. Bb2 {[%clk 0:03:00.3]}
2... Bg4 {[%clk 0:02:56]} 3. g3 {[%clk 0:02:59.9]} 3... e6 {[%clk 0:02:52.6]} 4.
Bg2 {[%clk 0:03:00.3]} 4... Nf6 {[%clk 0:02:52.8]} 5. Nf3 {[%clk 0:03:00.8]}
5... Be7 {[%clk 0:02:52.8]} 6. O-O {[%clk 0:03:00.7]} 6... O-O {[%clk
0:02:52.6]} 7. Ne5 {[%clk 0:02:52.1]} 7... Bh5 {[%clk 0:02:52.2]} 8. f4 {[%clk
0:02:51.2]} 8... Nbd7 {[%clk 0:02:47.7]} 9. Nxd7 {[%clk 0:02:49]} 9... Nxd7
{[%clk 0:02:43.6]} 10. Re1 {[%clk 0:02:36.1]} 10... Bf6 {[%clk 0:02:43.7]} 11.
Qc1 {[%clk 0:02:36.6]} 11... a5 {[%clk 0:02:41.1]} 12. a4 {[%clk 0:02:36.4]}
12... Re8 {[%clk 0:02:35.4]} 13. d3 {[%clk 0:02:33.8]} 13... c6 {[%clk
0:02:34.1]} 14. e4 {[%clk 0:02:34.1]} 14... dxe4 {[%clk 0:02:27.9]} 15. dxe4
{[%clk 0:02:32.6]} 15... Bxb2 {[%clk 0:02:28.5]} 16. Qxb2 {[%clk 0:02:32.6]}
16... Qb6+ {[%clk 0:02:28.3]} 17. Kf1 {[%clk 0:02:10.4]} 17... Nf6 {[%clk
0:02:09.3]} 18. h3 {[%clk 0:02:10.2]} 18... Rad8 {[%clk 0:02:09.4]} 19. Qc3
{[%clk 0:02:05.8]} 19... e5 {[%clk 0:02:04.8]} 20. f5 {[%clk 0:01:51.2]} 20...
Rd4 {[%clk 0:02:01.7]} 21. Nd2 {[%clk 0:01:46.6]} 21... Red8 {[%clk 0:02:01.7]}
22. Nc4 {[%clk 0:01:46.8]} 22... Qc5 {[%clk 0:02:01]} 23. Qxa5 {[%clk 0:01:36]}
23... b5 {[%clk 0:01:55.7]} 24. axb5 {[%clk 0:01:29.7]} 24... cxb5 {[%clk
0:01:55.2]} 25. Qb6 {[%clk 0:01:15]} 25... Qb4 {[%clk 0:01:30.3]} 26. Nxe5
{[%clk 0:00:34.8]} 26... Qc3 {[%clk 0:01:22]} 27. g4 {[%clk 0:00:19.2]} 27...
Bxg4 {[%clk 0:01:19]} 28. hxg4 {[%clk 0:00:19.4]} 28... Qg3 {[%clk 0:01:13.8]}
29. Qc7 {[%clk 0:00:09.7]} 29... R4d7 {[%clk 0:00:41.2]} 30. Nxd7 {[%clk
0:00:08.5]} 30... Qxc7 {[%clk 0:00:40.4]} 31. Nxf6+ {[%clk 0:00:08.7]} 31...
gxf6 {[%clk 0:00:41]} 32. Rad1 {[%clk 0:00:08.4]} 32... Rxd1 {[%clk 0:00:40.6]}
33. Rxd1 {[%clk 0:00:09.3]} 33... Qxc2 {[%clk 0:00:40.8]} 34. Rd8+ {[%clk
0:00:09.2]} 34... Kg7 {[%clk 0:00:41]} 35. e5 {[%clk 0:00:06]} 35... fxe5 {[%clk
0:00:35.9]} 36. Rd5 {[%clk 0:00:04.4]} 36... Qxb3 {[%clk 0:00:30.4]} 37. Rxe5
{[%clk 0:00:04.8]} 37... Qb1+ {[%clk 0:00:29.9]} 38. Re1 {[%clk 0:00:04.4]}
38... Qd3+ {[%clk 0:00:30]} 39. Kf2 {[%clk 0:00:04.4]} 39... b4 {[%clk
0:00:30.5]} 40. Re3 {[%clk 0:00:04.5]} 40... Qd4 {[%clk 0:00:29.2]} 41. Be4
{[%clk 0:00:02.2]} 41... b3 {[%clk 0:00:26.8]} 42. Kf3 {[%clk 0:00:02.7]} 42...
b2 {[%clk 0:00:26.7]} 0-1

[Event "Early-Titled-Tuesday-Blitz-October-10-2023"]
[Site "Chess.com"]
[Date "2023.10.10"]
[Round "7"]
[White "RCone"]
[Black "Zurability"]
[Result "0-1"]
[WhiteElo "2483"]
[BlackElo "2715"]
[TimeControl "180+1"]
[EndTime "9:15:31 PDT"]
[Termination "Zurability won on time"]

1. e4 {[%clk 0:02:55.9]} 1... c5 {[%clk 0:02:59.9]} 2. Nc3 {[%clk 0:02:54.6]}
2... Nc6 {[%clk 0:02:59.8]} 3. Bb5 {[%clk 0:02:47.1]} 3... Nd4 {[%clk
0:02:59.8]} 4. Nf3 {[%clk 0:02:46.7]} 4... Nxb5 {[%clk 0:02:59.5]} 5. Nxb5
{[%clk 0:02:47.3]} 5... d6 {[%clk 0:03:00.1]} 6. O-O {[%clk 0:02:44]} 6... Nf6
{[%clk 0:03:00.7]} 7. Nc3 {[%clk 0:02:43.1]} 7... g6 {[%clk 0:02:59.4]} 8. e5
{[%clk 0:02:20]} 8... dxe5 {[%clk 0:02:58.2]} 9. Nxe5 {[%clk 0:02:20.9]} 9...
Bg7 {[%clk 0:02:58.6]} 10. Re1 {[%clk 0:02:20.6]} 10... O-O {[%clk 0:02:59]} 11.
d3 {[%clk 0:02:20.6]} 11... Nd5 {[%clk 0:02:42.3]} 12. Bd2 {[%clk 0:02:17.4]}
12... Be6 {[%clk 0:02:39.2]} 13. Qf3 {[%clk 0:02:11]} 13... Nb4 {[%clk
0:02:37.3]} 14. Rac1 {[%clk 0:02:05.2]} 14... Qb6 {[%clk 0:02:26.2]} 15. a3
{[%clk 0:02:00.9]} 15... Na6 {[%clk 0:02:08.5]} 16. b3 {[%clk 0:01:38.3]} 16...
Rad8 {[%clk 0:02:07.6]} 17. Na4 {[%clk 0:01:26]} 17... Qc7 {[%clk 0:02:02.7]}
18. Bf4 {[%clk 0:01:25.8]} 18... Qc8 {[%clk 0:02:02.8]} 19. h3 {[%clk
0:01:24.9]} 19... Bd5 {[%clk 0:01:52.1]} 20. Qg3 {[%clk 0:01:21.9]} 20... f6
{[%clk 0:01:52.3]} 21. Ng4 {[%clk 0:01:01.9]} 21... e5 {[%clk 0:01:41.9]} 22.
Bh6 {[%clk 0:01:02.1]} 22... Be6 {[%clk 0:01:23]} 23. Bxg7 {[%clk 0:01:01.4]}
23... Kxg7 {[%clk 0:01:23.2]} 24. Qh4 {[%clk 0:00:42.5]} 24... h5 {[%clk
0:01:20.8]} 25. Nh2 {[%clk 0:00:42.6]} 25... Rd4 {[%clk 0:01:10.2]} 26. Qg3
{[%clk 0:00:41.2]} 26... b5 {[%clk 0:00:59.8]} 27. Nc3 {[%clk 0:00:38.8]} 27...
b4 {[%clk 0:01:00.4]} 28. axb4 {[%clk 0:00:35.5]} 28... cxb4 {[%clk 0:01:01.3]}
29. Ne4 {[%clk 0:00:34.4]} 29... Nc5 {[%clk 0:01:01.5]} 30. Nd2 {[%clk
0:00:28.6]} 30... h4 {[%clk 0:00:53.6]} 31. Qe3 {[%clk 0:00:25.9]} 31... Bd5
{[%clk 0:00:45.2]} 32. Ra1 {[%clk 0:00:23.5]} 32... Rf7 {[%clk 0:00:42.4]} 33.
Nhf3 {[%clk 0:00:20.6]} 33... Rf4 {[%clk 0:00:41]} 34. Ne4 {[%clk 0:00:17]}
34... Bxe4 {[%clk 0:00:33.3]} 35. dxe4 {[%clk 0:00:17.5]} 35... Rxe4 {[%clk
0:00:34.2]} 36. Qd2 {[%clk 0:00:11.4]} 36... Rf4 {[%clk 0:00:26]} 37. Re3 {[%clk
0:00:05.1]} 37... Ne4 {[%clk 0:00:22.6]} 38. Qe1 {[%clk 0:00:04.5]} 38... Nc3
{[%clk 0:00:20.9]} 39. Ra5 {[%clk 0:00:03]} 39... Qc7 {[%clk 0:00:16.3]} 0-1

[Event "Early-Titled-Tuesday-Blitz-October-10-2023"]
[Site "Chess.com"]
[Date "2023.10.10"]
[Round "7"]
[White "SAInt_666"]
[Black "Grischuk"]
[Result "1-0"]
[WhiteElo "2687"]
[BlackElo "2976"]
[TimeControl "180+1"]
[EndTime "9:15:33 PDT"]
[Termination "SAInt_666 won on time"]

1. e4 {[%clk 0:03:00.2]} 1... c5 {[%clk 0:02:59.6]} 2. Nf3 {[%clk 0:03:00.3]}
2... d6 {[%clk 0:03:00.3]} 3. Bb5+ {[%clk 0:03:00.4]} 3... Nd7 {[%clk
0:03:00.3]} 4. O-O {[%clk 0:03:00.4]} 4... a6 {[%clk 0:03:00.5]} 5. Bxd7+ {[%clk
0:03:00.7]} 5... Bxd7 {[%clk 0:03:01.4]} 6. c3 {[%clk 0:03:01.5]} 6... Nf6
{[%clk 0:02:58.8]} 7. Re1 {[%clk 0:03:02]} 7... Bc6 {[%clk 0:02:34.1]} 8. d4
{[%clk 0:03:02.1]} 8... Bxe4 {[%clk 0:02:33.8]} 9. Bg5 {[%clk 0:03:02]} 9... Bd5
{[%clk 0:02:33.7]} 10. c4 {[%clk 0:03:01.9]} 10... Bxc4 {[%clk 0:02:29.5]} 11.
Nc3 {[%clk 0:03:02.4]} 11... Rc8 {[%clk 0:01:55.2]} 12. Bxf6 {[%clk 0:02:34]}
12... gxf6 {[%clk 0:01:55]} 13. Qa4+ {[%clk 0:02:34.7]} 13... Bb5 {[%clk
0:01:31]} 14. Nxb5 {[%clk 0:02:34.7]} 14... axb5 {[%clk 0:01:31.9]} 15. Qxb5+
{[%clk 0:02:35.4]} 15... Qd7 {[%clk 0:01:32.6]} 16. Qe2 {[%clk 0:02:26.2]} 16...
cxd4 {[%clk 0:01:16.1]} 17. Nxd4 {[%clk 0:02:23.4]} 17... e6 {[%clk 0:01:01.3]}
18. Rac1 {[%clk 0:01:10.2]} 18... Rxc1 {[%clk 0:00:58.9]} 19. Rxc1 {[%clk
0:01:11.1]} 19... Be7 {[%clk 0:00:44.8]} 20. Qg4 {[%clk 0:01:02.4]} 20... Kf8
{[%clk 0:00:39.1]} 21. Qh3 {[%clk 0:00:55.2]} 21... h5 {[%clk 0:00:38.5]} 22. b3
{[%clk 0:00:11.8]} 22... f5 {[%clk 0:00:28.4]} 23. a4 {[%clk 0:00:11.8]} 23...
h4 {[%clk 0:00:24.9]} 24. Nb5 {[%clk 0:00:11.9]} 24... Bd8 {[%clk 0:00:14.9]}
25. Rc4 {[%clk 0:00:10]} 25... d5 {[%clk 0:00:13.8]} 26. Qc3 {[%clk 0:00:09.6]}
26... Rg8 {[%clk 0:00:03.6]} 27. Rc8 {[%clk 0:00:08]} 27... f4 {[%clk 0:00:03]}
28. h3 {[%clk 0:00:07.9]} 28... d4 {[%clk 0:00:02]} 29. Qc5+ {[%clk 0:00:07.9]}
29... Kg7 {[%clk 0:00:01.9]} 30. Nd6 {[%clk 0:00:06.8]} 30... Bf6 {[%clk
0:00:01.1]} 31. Rxg8+ {[%clk 0:00:06.2]} 31... Kxg8 {[%clk 0:00:02]} 32. Ne4
{[%clk 0:00:06.3]} 32... Kg7 {[%clk 0:00:02.1]} 33. Qh5 {[%clk 0:00:05.6]} 33...
d3 {[%clk 0:00:01.2]} 34. Qg4+ {[%clk 0:00:06]} 1-0

[Event "Early-Titled-Tuesday-Blitz-October-10-2023"]
[Site "Chess.com"]
[Date "2023.10.10"]
[Round "7"]
[White "Riku-gan"]
[Black "Zavgorodniy_Sergiy"]
[Result "1-0"]
[WhiteElo "2845"]
[BlackElo "2641"]
[TimeControl "180+1"]
[EndTime "9:15:40 PDT"]
[Termination "Riku-gan won on time"]

1. Nc3 {[%clk 0:02:59.8]} 1... e5 {[%clk 0:02:56.6]} 2. Nf3 {[%clk 0:02:58.3]}
2... d6 {[%clk 0:02:54.1]} 3. d4 {[%clk 0:02:58]} 3... Nd7 {[%clk 0:02:52.9]} 4.
e4 {[%clk 0:02:55.5]} 4... exd4 {[%clk 0:02:51.9]} 5. Qxd4 {[%clk 0:02:53.4]}
5... Ngf6 {[%clk 0:02:52]} 6. Bc4 {[%clk 0:02:51.3]} 6... Be7 {[%clk 0:02:52.4]}
7. Bg5 {[%clk 0:02:42.5]} 7... O-O {[%clk 0:02:51.7]} 8. O-O-O {[%clk
0:02:40.8]} 8... c6 {[%clk 0:02:51.1]} 9. h3 {[%clk 0:02:35.9]} 9... b5 {[%clk
0:02:50]} 10. Be2 {[%clk 0:02:27.1]} 10... c5 {[%clk 0:02:27.9]} 11. Qe3 {[%clk
0:02:27.1]} 11... b4 {[%clk 0:02:27.8]} 12. Nd5 {[%clk 0:02:24]} 12... Nxd5
{[%clk 0:02:26.7]} 13. Rxd5 {[%clk 0:02:24.9]} 13... Bxg5 {[%clk 0:02:25.2]} 14.
Nxg5 {[%clk 0:02:25.8]} 14... Nb6 {[%clk 0:02:14.4]} 15. Rdd1 {[%clk 0:02:16.6]}
15... Qe7 {[%clk 0:02:08.7]} 16. Qf4 {[%clk 0:01:54.9]} 16... d5 {[%clk
0:01:59.1]} 17. Rhe1 {[%clk 0:01:43.9]} 17... d4 {[%clk 0:01:54.9]} 18. e5
{[%clk 0:01:38.7]} 18... Be6 {[%clk 0:01:48.5]} 19. Kb1 {[%clk 0:01:36.5]} 19...
Nd5 {[%clk 0:01:45]} 20. Qg3 {[%clk 0:01:35.9]} 20... Nc3+ {[%clk 0:01:39.3]}
21. bxc3 {[%clk 0:01:31.4]} 21... bxc3 {[%clk 0:01:40.2]} 22. Ka1 {[%clk
0:01:24.3]} 22... Rab8 {[%clk 0:01:38.9]} 23. Rb1 {[%clk 0:01:16.9]} 23... Bxa2
{[%clk 0:01:35.8]} 24. Qd3 {[%clk 0:00:56.1]} 24... Rxb1+ {[%clk 0:01:04.3]} 25.
Rxb1 {[%clk 0:00:54.7]} 25... Qxg5 {[%clk 0:01:04.5]} 26. Kxa2 {[%clk
0:00:53.3]} 26... Qxg2 {[%clk 0:01:01.7]} 27. f4 {[%clk 0:00:48.8]} 27... g6
{[%clk 0:00:55.8]} 28. f5 {[%clk 0:00:47]} 28... Qd5+ {[%clk 0:00:54.7]} 29. Qc4
{[%clk 0:00:47.1]} 29... Qxe5 {[%clk 0:00:54.8]} 30. Bd3 {[%clk 0:00:47.5]}
30... Kg7 {[%clk 0:00:54.1]} 31. fxg6 {[%clk 0:00:43.9]} 31... hxg6 {[%clk
0:00:55]} 32. Rb7 {[%clk 0:00:42.3]} 32... Qd6 {[%clk 0:00:39]} 33. Qa6 {[%clk
0:00:43.2]} 33... Qf6 {[%clk 0:00:20.7]} 34. Qxf6+ {[%clk 0:00:39.8]} 34... Kxf6
{[%clk 0:00:19.8]} 35. Kb3 {[%clk 0:00:40.7]} 35... Rh8 {[%clk 0:00:18.8]} 36.
Rxa7 {[%clk 0:00:37.6]} 36... Rxh3 {[%clk 0:00:17.8]} 37. Kc4 {[%clk 0:00:38.3]}
37... g5 {[%clk 0:00:13.9]} 38. Kxc5 {[%clk 0:00:38.7]} 38... g4 {[%clk
0:00:12.2]} 39. Kxd4 {[%clk 0:00:38]} 39... g3 {[%clk 0:00:11]} 40. Ra1 {[%clk
0:00:36.6]} 40... Kg5 {[%clk 0:00:08.8]} 41. Ke3 {[%clk 0:00:33.9]} 41... f5
{[%clk 0:00:07.3]} 42. Kf3 {[%clk 0:00:34]} 42... Kh4 {[%clk 0:00:01.8]} 43.
Ra4+ {[%clk 0:00:34.1]} 1-0

[Event "Early-Titled-Tuesday-Blitz-October-10-2023"]
[Site "Chess.com"]
[Date "2023.10.10"]
[Round "7"]
[White "Arash_Tahbaz"]
[Black "combidharma"]
[Result "0-1"]
[WhiteElo "2907"]
[BlackElo "2672"]
[TimeControl "180+1"]
[EndTime "9:15:42 PDT"]
[Termination "combidharma won on time"]

1. Nf3 {[%clk 0:03:00.9]} 1... Nf6 {[%clk 0:02:52.6]} 2. g3 {[%clk 0:03:00]}
2... d5 {[%clk 0:02:52.6]} 3. Bg2 {[%clk 0:03:00.3]} 3... c6 {[%clk 0:02:50.4]}
4. O-O {[%clk 0:02:54]} 4... Bf5 {[%clk 0:02:43.3]} 5. d3 {[%clk 0:02:54]} 5...
Nbd7 {[%clk 0:02:42.8]} 6. c4 {[%clk 0:02:50.8]} 6... dxc4 {[%clk 0:02:36.2]} 7.
dxc4 {[%clk 0:02:51.7]} 7... e5 {[%clk 0:02:36.9]} 8. Nc3 {[%clk 0:02:47.6]}
8... Be7 {[%clk 0:02:33.7]} 9. b3 {[%clk 0:02:41.8]} 9... O-O {[%clk 0:02:30.2]}
10. Nh4 {[%clk 0:02:41.7]} 10... Be6 {[%clk 0:02:21.2]} 11. Qc2 {[%clk
0:02:38.5]} 11... g6 {[%clk 0:02:10.9]} 12. Bb2 {[%clk 0:02:29]} 12... Qc7
{[%clk 0:02:10.1]} 13. Rad1 {[%clk 0:02:20.9]} 13... Rad8 {[%clk 0:02:09.5]} 14.
h3 {[%clk 0:02:05.9]} 14... Nc5 {[%clk 0:01:56.9]} 15. Nf3 {[%clk 0:02:00.2]}
15... e4 {[%clk 0:01:45.4]} 16. Ng5 {[%clk 0:01:58.5]} 16... e3 {[%clk
0:01:45.5]} 17. f4 {[%clk 0:01:50]} 17... Nh5 {[%clk 0:01:39.9]} 18. Nge4 {[%clk
0:01:46.8]} 18... Nxe4 {[%clk 0:01:36.2]} 19. Nxe4 {[%clk 0:01:47.7]} 19... f5
{[%clk 0:01:29.3]} 20. Qc3 {[%clk 0:01:46]} 20... fxe4 {[%clk 0:01:17]} 21. Qh8+
{[%clk 0:01:29.5]} 21... Kf7 {[%clk 0:01:16.4]} 22. Qxh7+ {[%clk 0:01:29.9]}
22... Ke8 {[%clk 0:01:16.8]} 23. Bxe4 {[%clk 0:01:29.6]} 23... Bf7 {[%clk
0:00:43.3]} 24. Bxg6 {[%clk 0:01:25.5]} 24... Rxd1 {[%clk 0:00:41.7]} 25. Rxd1
{[%clk 0:01:19.3]} 25... Nxf4 {[%clk 0:00:27.1]} 26. gxf4 {[%clk 0:00:50.9]}
26... Qxf4 {[%clk 0:00:28]} 27. Bxf7+ {[%clk 0:00:51.4]} 27... Rxf7 {[%clk
0:00:28.5]} 28. Qh8+ {[%clk 0:00:52]} 28... Rf8 {[%clk 0:00:25.3]} 29. Qh5+
{[%clk 0:00:51.7]} 29... Rf7 {[%clk 0:00:25.9]} 30. Be5 {[%clk 0:00:37.9]} 30...
Qf2+ {[%clk 0:00:15.9]} 31. Kh1 {[%clk 0:00:38.3]} 31... Qf5 {[%clk 0:00:11.5]}
32. Qxf5 {[%clk 0:00:19.4]} 32... Rxf5 {[%clk 0:00:12.4]} 33. Bg3 {[%clk
0:00:14.4]} 33... Rg5 {[%clk 0:00:07.7]} 0-1

[Event "Early-Titled-Tuesday-Blitz-October-10-2023"]
[Site "Chess.com"]
[Date "2023.10.10"]
[Round "7"]
[White "crazy_m_attack"]
[Black "cande_francisco"]
[Result "0-1"]
[WhiteElo "2426"]
[BlackElo "2540"]
[TimeControl "180+1"]
[EndTime "9:15:43 PDT"]
[Termination "cande_francisco won on time"]

1. e4 {[%clk 0:03:00.9]} 1... c5 {[%clk 0:02:59.6]} 2. Nf3 {[%clk 0:02:56.7]}
2... g6 {[%clk 0:03:00]} 3. d4 {[%clk 0:02:56.6]} 3... cxd4 {[%clk 0:03:00.9]}
4. Nxd4 {[%clk 0:02:56.6]} 4... Bg7 {[%clk 0:03:01.3]} 5. Nc3 {[%clk 0:02:57.3]}
5... Nc6 {[%clk 0:03:01.9]} 6. Be3 {[%clk 0:02:57.5]} 6... Nf6 {[%clk
0:03:02.5]} 7. Be2 {[%clk 0:02:57.9]} 7... O-O {[%clk 0:03:02.7]} 8. Nb3 {[%clk
0:02:58.4]} 8... d6 {[%clk 0:03:01.7]} 9. O-O {[%clk 0:02:58.6]} 9... a6 {[%clk
0:03:00.4]} 10. a4 {[%clk 0:02:56.6]} 10... Be6 {[%clk 0:03:00.9]} 11. f4 {[%clk
0:02:56]} 11... Rc8 {[%clk 0:03:00]} 12. Qd2 {[%clk 0:02:50.4]} 12... Bxb3
{[%clk 0:02:30.9]} 13. cxb3 {[%clk 0:02:48.7]} 13... Na5 {[%clk 0:02:31.5]} 14.
Ra3 {[%clk 0:02:39.8]} 14... Rxc3 {[%clk 0:02:14.8]} 15. Qxc3 {[%clk 0:02:24.3]}
15... Nxe4 {[%clk 0:02:14.1]} 16. Qc2 {[%clk 0:02:03.4]} 16... d5 {[%clk
0:02:09.5]} 17. Rd1 {[%clk 0:01:54.4]} 17... Nc6 {[%clk 0:02:06.6]} 18. Bf3
{[%clk 0:01:44.2]} 18... Qa5 {[%clk 0:01:57.2]} 19. Bxe4 {[%clk 0:01:36.9]}
19... dxe4 {[%clk 0:01:58.1]} 20. Qxe4 {[%clk 0:01:37.1]} 20... Bxb2 {[%clk
0:01:56.3]} 21. Ra2 {[%clk 0:01:36.8]} 21... Bf6 {[%clk 0:01:52.6]} 22. Rad2
{[%clk 0:01:29.2]} 22... Kg7 {[%clk 0:01:41.8]} 23. Rd7 {[%clk 0:01:23.5]} 23...
Rb8 {[%clk 0:00:55.8]} 24. Qc4 {[%clk 0:01:10.3]} 24... Qf5 {[%clk 0:00:52.2]}
25. b4 {[%clk 0:01:03.2]} 25... Qg4 {[%clk 0:00:18.2]} 26. Qb3 {[%clk
0:00:32.6]} 26... b5 {[%clk 0:00:15.5]} 27. a5 {[%clk 0:00:25.5]} 27... Rc8
{[%clk 0:00:14.3]} 28. h3 {[%clk 0:00:17.4]} 28... Qe2 {[%clk 0:00:14.3]} 29.
Bc5 {[%clk 0:00:14.4]} 29... Qe4 {[%clk 0:00:07.3]} 30. Qf3 {[%clk 0:00:09]}
30... Qc4 {[%clk 0:00:07.2]} 31. Kh1 {[%clk 0:00:02.8]} 31... Nxb4 {[%clk
0:00:07.4]} 32. Bxb4 {[%clk 0:00:03.2]} 32... Qxb4 {[%clk 0:00:07.7]} 33. Qb7
{[%clk 0:00:03.5]} 33... Rc2 {[%clk 0:00:06.6]} 34. Qxa6 {[%clk 0:00:02.7]}
34... Qe4 {[%clk 0:00:05.5]} 35. Qb7 {[%clk 0:00:02.2]} 35... Qxf4 {[%clk
0:00:04.8]} 36. Qf3 {[%clk 0:00:02.9]} 36... Qa4 {[%clk 0:00:04.7]} 0-1

[Event "Early-Titled-Tuesday-Blitz-October-10-2023"]
[Site "Chess.com"]
[Date "2023.10.10"]
[Round "7"]
[White "guillembaches"]
[Black "RianKapriaga"]
[Result "1-0"]
[WhiteElo "2493"]
[BlackElo "2306"]
[TimeControl "180+1"]
[EndTime "9:15:43 PDT"]
[Termination "guillembaches won on time"]

1. d4 {[%clk 0:03:00.9]} 1... Nf6 {[%clk 0:02:51.2]} 2. Nf3 {[%clk 0:03:01.1]}
2... d5 {[%clk 0:02:49.8]} 3. Bg5 {[%clk 0:03:01.4]} 3... Nbd7 {[%clk
0:02:46.3]} 4. Nbd2 {[%clk 0:02:58.6]} 4... g6 {[%clk 0:02:42.1]} 5. e3 {[%clk
0:02:57.1]} 5... Bg7 {[%clk 0:02:40.4]} 6. Be2 {[%clk 0:02:56.9]} 6... O-O
{[%clk 0:02:39.3]} 7. O-O {[%clk 0:02:56.8]} 7... c6 {[%clk 0:02:38.9]} 8. c3
{[%clk 0:02:53.8]} 8... Qb6 {[%clk 0:02:34.2]} 9. b4 {[%clk 0:02:52]} 9... Re8
{[%clk 0:02:31.4]} 10. h3 {[%clk 0:02:42.4]} 10... e5 {[%clk 0:02:27.8]} 11. a4
{[%clk 0:02:36.4]} 11... exd4 {[%clk 0:02:17.1]} 12. Nxd4 {[%clk 0:02:30.3]}
12... Ne5 {[%clk 0:02:12.1]} 13. Qb3 {[%clk 0:02:17.5]} 13... Ne4 {[%clk
0:02:08]} 14. Nxe4 {[%clk 0:02:10.3]} 14... dxe4 {[%clk 0:02:07.6]} 15. a5
{[%clk 0:02:06.3]} 15... Qc7 {[%clk 0:02:04.1]} 16. Rfd1 {[%clk 0:02:04.6]}
16... Bd7 {[%clk 0:01:54.8]} 17. Bf4 {[%clk 0:02:00.2]} 17... a6 {[%clk
0:01:47]} 18. Rd2 {[%clk 0:01:54.6]} 18... Rad8 {[%clk 0:01:46]} 19. Rad1 {[%clk
0:01:51.5]} 19... Qc8 {[%clk 0:01:45.7]} 20. Bg5 {[%clk 0:01:46.4]} 20... Bxh3
{[%clk 0:01:31.5]} 21. Bxd8 {[%clk 0:01:44.3]} 21... Rxd8 {[%clk 0:01:30.7]} 22.
Nxc6 {[%clk 0:01:26.4]} 22... Nxc6 {[%clk 0:01:26.5]} 23. Rxd8+ {[%clk
0:01:24.4]} 23... Nxd8 {[%clk 0:01:26]} 24. gxh3 {[%clk 0:01:22.4]} 24... Nc6
{[%clk 0:01:16.4]} 25. Bg4 {[%clk 0:01:18.9]} 25... Qe8 {[%clk 0:01:03.8]} 26.
Bd7 {[%clk 0:01:14.2]} 26... Qe7 {[%clk 0:01:00.7]} 27. Bxc6 {[%clk 0:01:10.4]}
27... bxc6 {[%clk 0:01:00.6]} 28. Qc4 {[%clk 0:01:05]} 28... Qg5+ {[%clk
0:00:57.5]} 29. Kf1 {[%clk 0:01:05.1]} 29... Qf5 {[%clk 0:00:53.5]} 30. Qxc6
{[%clk 0:00:57]} 30... h5 {[%clk 0:00:42.1]} 31. Rd8+ {[%clk 0:00:52.1]} 31...
Kh7 {[%clk 0:00:40.6]} 32. Qc8 {[%clk 0:00:47.1]} 32... Qf3 {[%clk 0:00:33.6]}
33. Ke1 {[%clk 0:00:44.1]} 33... h4 {[%clk 0:00:27.1]} 34. Qc4 {[%clk
0:00:30.9]} 34... Qxh3 {[%clk 0:00:18.6]} 35. Qxe4 {[%clk 0:00:26.7]} 35... Qh2
{[%clk 0:00:13.9]} 36. Ke2 {[%clk 0:00:22.8]} 36... Qg1 {[%clk 0:00:11.9]} 37.
Qxh4+ {[%clk 0:00:21.4]} 37... Bh6 {[%clk 0:00:11.1]} 38. Qf6 {[%clk 0:00:20]}
38... Qg4+ {[%clk 0:00:10]} 39. Kd2 {[%clk 0:00:19.1]} 39... Bg7 {[%clk
0:00:08.9]} 40. Qxf7 {[%clk 0:00:19.3]} 40... Qc4 {[%clk 0:00:05.1]} 41. Qxc4
{[%clk 0:00:17.9]} 1-0

[Event "Early-Titled-Tuesday-Blitz-October-10-2023"]
[Site "Chess.com"]
[Date "2023.10.10"]
[Round "7"]
[White "secretsuperstar7"]
[Black "vladgoncharov"]
[Result "1-0"]
[WhiteElo "2437"]
[BlackElo "2516"]
[TimeControl "180+1"]
[EndTime "9:15:47 PDT"]
[Termination "secretsuperstar7 won on time"]

1. c4 {[%clk 0:03:00.9]} 1... Nf6 {[%clk 0:02:57.7]} 2. Nc3 {[%clk 0:03:00.2]}
2... c5 {[%clk 0:02:57.4]} 3. g3 {[%clk 0:02:59.7]} 3... Nc6 {[%clk 0:02:57.5]}
4. Bg2 {[%clk 0:03:00]} 4... g6 {[%clk 0:02:57.3]} 5. e4 {[%clk 0:03:00.7]} 5...
d6 {[%clk 0:02:57]} 6. Nge2 {[%clk 0:03:01.2]} 6... Bg7 {[%clk 0:02:57]} 7. O-O
{[%clk 0:03:01.8]} 7... O-O {[%clk 0:02:57.1]} 8. d3 {[%clk 0:03:02.4]} 8... Ne8
{[%clk 0:02:56.7]} 9. a3 {[%clk 0:03:03]} 9... Nc7 {[%clk 0:02:56.4]} 10. Rb1
{[%clk 0:03:03.1]} 10... Rb8 {[%clk 0:02:49.7]} 11. b4 {[%clk 0:03:02.1]} 11...
cxb4 {[%clk 0:02:49]} 12. axb4 {[%clk 0:03:03]} 12... b5 {[%clk 0:02:49.1]} 13.
Nd5 {[%clk 0:02:30]} 13... bxc4 {[%clk 0:02:32]} 14. dxc4 {[%clk 0:02:14.5]}
14... Nxd5 {[%clk 0:02:31.6]} 15. exd5 {[%clk 0:02:11.4]} 15... Nxb4 {[%clk
0:02:31.4]} 16. Be3 {[%clk 0:02:09.7]} 16... a5 {[%clk 0:02:30.8]} 17. Bd4
{[%clk 0:02:09.5]} 17... Bf5 {[%clk 0:02:17.9]} 18. Rb2 {[%clk 0:02:06.3]} 18...
Bxd4 {[%clk 0:01:31.1]} 19. Nxd4 {[%clk 0:02:04.8]} 19... Bd7 {[%clk 0:01:23]}
20. Qa1 {[%clk 0:01:52.6]} 20... Qc7 {[%clk 0:01:19.3]} 21. Rc1 {[%clk
0:01:40.6]} 21... Nd3 {[%clk 0:01:18.3]} 22. Rxb8 {[%clk 0:01:36.8]} 22... Rxb8
{[%clk 0:01:17.8]} 23. Rc3 {[%clk 0:01:36.5]} 23... Nc5 {[%clk 0:01:17.5]} 24.
Ra3 {[%clk 0:01:33]} 24... a4 {[%clk 0:01:17.2]} 25. Nc6 {[%clk 0:01:29.8]}
25... Bxc6 {[%clk 0:01:08.7]} 26. dxc6 {[%clk 0:01:30.7]} 26... e6 {[%clk
0:01:05.7]} 27. h4 {[%clk 0:01:27.2]} 27... h5 {[%clk 0:00:58.8]} 28. Qf6 {[%clk
0:01:25.8]} 28... Qd8 {[%clk 0:00:53]} 29. Qd4 {[%clk 0:01:19.3]} 29... Kf8
{[%clk 0:00:47.8]} 30. g4 {[%clk 0:01:09.8]} 30... hxg4 {[%clk 0:00:45]} 31.
Qxg4 {[%clk 0:01:10.3]} 31... Qf6 {[%clk 0:00:42]} 32. Qg3 {[%clk 0:01:03.6]}
32... Ke7 {[%clk 0:00:39.2]} 33. Rf3 {[%clk 0:00:58.8]} 33... Qe5 {[%clk
0:00:26]} 34. Qg4 {[%clk 0:00:31.1]} 34... Rb3 {[%clk 0:00:22.1]} 35. c7 {[%clk
0:00:24.4]} 35... Kd7 {[%clk 0:00:16.1]} 36. Rxf7+ {[%clk 0:00:23.8]} 36... Kc8
{[%clk 0:00:16.3]} 37. Qxg6 {[%clk 0:00:19.5]} 37... Nd7 {[%clk 0:00:14]} 38.
Rxd7 {[%clk 0:00:14.6]} 38... Kxd7 {[%clk 0:00:12.1]} 39. Qf7+ {[%clk
0:00:11.3]} 39... Kc8 {[%clk 0:00:12.2]} 40. Bc6 {[%clk 0:00:06.9]} 40... Rb1+
{[%clk 0:00:06.6]} 41. Kg2 {[%clk 0:00:07]} 1-0